[Event "NJSK 2022 Jeugd A"]
[Site "Almelo, Netherlands"]
[Date "2022.05.03"]
[Round "3.1"]
[White "Van Foreest, Machteld"]
[Black "Pham, Khoi"]
[Result "1-0"]
[TimeControl "90min/40moves + 30min + 30sec/move"]
[WhiteElo "2287"]
[BlackElo "2291"]

1. e4 {[%clk 01:30:58]} {[%emt 00:00:02]} c5 {[%clk 01:30:56]} {[%emt
00:00:04]} 2. Nf3 {[%clk 01:31:24]} {[%emt 00:00:04]} Nc6 {[%clk 01:31:22]}
{[%emt 00:00:04]} 3. c3 {[%clk 01:31:32]} {[%emt 00:00:22]} Nf6 {[%clk
01:31:43]} {[%emt 00:00:09]} 4. e5 {[%clk 01:31:58]} {[%emt 00:00:05]} Nd5
{[%clk 01:32:10]} {[%emt 00:00:03]} 5. Bc4 {[%clk 01:32:23]} {[%emt 00:00:04]}
Nb6 {[%clk 01:31:09]} {[%emt 00:01:31]} 6. Bb3 {[%clk 01:32:48]} {[%emt
00:00:05]} c4 {[%clk 01:26:07]} {[%emt 00:05:32]} 7. Bc2 {[%clk 01:33:17]} d6
{[%clk 01:26:32]} {[%emt 00:00:05]} 8. Qe2 {[%clk 01:33:42]} {[%emt 00:00:04]}
Bg4 {[%clk 01:23:37]} {[%emt 00:03:26]} 9. exd6 {[%clk 01:23:30]} {[%emt
00:10:42]} Qxd6 {[%clk 01:24:02]} {[%emt 00:00:05]} 10. a4 {[%clk 01:18:46]}
{[%emt 00:05:14]} e5 {[%clk 01:14:05]} {[%emt 00:10:26]} 11. Na3 {[%clk
01:13:57]} {[%emt 00:05:20]} Qc5 {[%clk 00:51:56]} {[%emt 00:22:39]} 12. O-O
{[%clk 01:00:24]} {[%emt 00:14:02]} Be7 {[%clk 00:48:37]} {[%emt 00:03:50]} 13.
d3 {[%clk 00:52:29]} {[%emt 00:08:25]} cxd3 {[%clk 00:47:58]} {[%emt 00:01:08]}
14. Bxd3 {[%clk 00:48:56]} {[%emt 00:04:04]} O-O {[%clk 00:40:59]} {[%emt
00:07:28]} 15. Rd1 {[%clk 00:40:33]} {[%emt 00:08:53]} Nd5 {[%clk 00:30:36]}
{[%emt 00:10:54]} 16. b4 {[%clk 00:31:27]} {[%emt 00:09:36]} Qxc3 {[%clk
00:26:21]} {[%emt 00:04:45]} 17. Bd2 {[%clk 00:30:53]} {[%emt 00:01:03]} Bxf3
{[%clk 00:23:57]} {[%emt 00:02:55]} 18. Qxf3 {[%clk 00:30:17]} {[%emt
00:01:06]} Nd4 {[%clk 00:24:07]} {[%emt 00:00:20]} 19. Qh3 {[%clk 00:30:00]}
{[%emt 00:00:47]} 1-0

[Event "NJSK 2022 Jeugd A"]
[Site "Almelo, Netherlands"]
[Date "2022.05.03"]
[Round "3.2"]
[White "Elgersma, Onno"]
[Black "Roebers, Eline"]
[Result "0-1"]
[TimeControl "90min/40moves + 30min + 30sec/move"]
[WhiteElo "2303"]
[BlackElo "2369"]

1. e4 {[%clk 01:30:57]} {[%emt 00:00:03]} c5 {[%clk 01:30:56]} {[%emt
00:00:04]} 2. Nf3 {[%clk 01:31:23]} {[%emt 00:00:04]} d6 {[%clk 01:30:48]}
{[%emt 00:00:38]} 3. Bb5+ {[%clk 01:31:47]} {[%emt 00:00:07]} Nd7 {[%clk
01:31:14]} {[%emt 00:00:04]} 4. a4 {[%clk 01:32:07]} {[%emt 00:00:09]} Ngf6
{[%clk 01:27:58]} {[%emt 00:03:46]} 5. Nc3 {[%clk 01:32:33]} {[%emt 00:00:05]}
g6 {[%clk 01:27:07]} {[%emt 00:01:21]} 6. a5 {[%clk 01:32:54]} {[%emt
00:00:09]} a6 {[%clk 01:25:16]} {[%emt 00:02:21]} 7. Be2 {[%clk 01:33:18]}
{[%emt 00:00:04]} Bg7 {[%clk 01:25:41]} {[%emt 00:00:06]} 8. O-O {[%clk
01:33:43]} {[%emt 00:00:06]} O-O {[%clk 01:26:09]} {[%emt 00:00:02]} 9. d3
{[%clk 01:34:02]} {[%emt 00:00:11]} b5 {[%clk 01:19:51]} {[%emt 00:06:48]} 10.
axb6 {[%clk 01:34:27]} {[%emt 00:00:05]} Nxb6 {[%clk 01:18:10]} {[%emt
00:02:11]} 11. h3 {[%clk 01:22:40]} {[%emt 00:12:16]} a5 {[%clk 01:11:48]}
{[%emt 00:06:52]} 12. Qd2 {[%clk 01:12:47]} {[%emt 00:10:22]} h6 {[%clk
01:01:24]} {[%emt 00:10:54]} 13. Qe1 {[%clk 01:04:39]} {[%emt 00:08:37]} e5
{[%clk 00:56:21]} {[%emt 00:05:33]} 14. Bd1 {[%clk 01:02:13]} {[%emt 00:02:55]}
Nh7 {[%clk 00:55:00]} {[%emt 00:01:52]} 15. Na4 {[%clk 00:56:47]} {[%emt
00:05:56]} Nxa4 {[%clk 00:52:16]} {[%emt 00:03:15]} 16. Rxa4 {[%clk 00:57:13]}
{[%emt 00:00:04]} Bd7 {[%clk 00:52:43]} {[%emt 00:00:03]} 17. Ra3 {[%clk
00:57:21]} {[%emt 00:00:21]} f5 {[%clk 00:50:57]} {[%emt 00:02:16]} 18. exf5
{[%clk 00:46:11]} {[%emt 00:11:39]} gxf5 {[%clk 00:50:21]} {[%emt 00:01:06]} 19.
Nd2 {[%clk 00:46:00]} {[%emt 00:00:41]} Ng5 {[%clk 00:42:51]} {[%emt 00:08:01]}
20. h4 {[%clk 00:40:30]} {[%emt 00:06:00]} Ne6 {[%clk 00:34:52]} {[%emt
00:08:28]} 21. Nc4 {[%clk 00:39:54]} {[%emt 00:01:06]} f4 {[%clk 00:18:50]}
{[%emt 00:16:33]} 22. Bf3 {[%clk 00:19:42]} {[%emt 00:20:42]} Rb8 {[%clk
00:13:39]} {[%emt 00:05:41]} 23. Bd5 {[%clk 00:19:17]} {[%emt 00:00:54]} Kh8
{[%clk 00:13:00]} {[%emt 00:01:10]} 24. Rxa5 {[%clk 00:10:55]} {[%emt
00:08:52]} f3 {[%clk 00:10:34]} {[%emt 00:02:56]} 25. g3 {[%clk 00:08:55]}
{[%emt 00:02:29]} Nd4 {[%clk 00:11:01]} {[%emt 00:00:03]} 26. Kh2 {[%clk
00:05:37]} {[%emt 00:03:48]} Nxc2 {[%clk 00:07:34]} {[%emt 00:03:58]} 27. Qd1
{[%clk 00:02:17]} {[%emt 00:03:50]} Nb4 {[%clk 00:06:45]} {[%emt 00:01:19]} 28.
Bxf3 {[%clk 00:02:07]} {[%emt 00:00:39]} d5 {[%clk 00:06:23]} {[%emt 00:00:52]}
29. Rxc5 {[%clk 00:01:08]} {[%emt 00:01:29]} dxc4 {[%clk 00:06:48]} {[%emt
00:00:05]} 30. dxc4 {[%clk 00:01:12]} {[%emt 00:00:27]} Bf5 {[%clk 00:04:54]}
{[%emt 00:02:23]} 31. Qxd8 {[%clk 00:01:09]} {[%emt 00:00:34]} Rbxd8 {[%clk
00:04:23]} {[%emt 00:01:01]} 32. Be2 {[%clk 00:00:55]} {[%emt 00:00:43]} Nd3
{[%clk 00:04:17]} {[%emt 00:00:36]} 33. Rd5 {[%clk 00:00:33]} {[%emt 00:00:52]}
Rxd5 {[%clk 00:01:53]} {[%emt 00:02:54]} 34. cxd5 {[%clk 00:01:02]} {[%emt
00:00:01]} Rd8 {[%clk 00:00:48]} {[%emt 00:01:35]} 35. Be3 {[%clk 00:00:52]}
{[%emt 00:00:40]} Rxd5 {[%clk 00:00:46]} {[%emt 00:00:31]} 36. g4 {[%clk
00:01:18]} {[%emt 00:00:05]} Bg6 {[%clk 00:00:49]} {[%emt 00:00:27]} 37. g5
{[%clk 00:01:10]} {[%emt 00:00:38]} h5 {[%clk 00:00:44]} {[%emt 00:00:36]} 38.
Ra1 {[%clk 00:01:17]} {[%emt 00:00:23]} Rd8 {[%clk 00:00:43]} {[%emt 00:00:30]}
39. Ra6 {[%clk 00:00:39]} {[%emt 00:01:08]} Kh7 {[%clk 00:00:43]} {[%emt
00:00:30]} 40. Bxd3 {[%clk 00:00:32]} {[%emt 00:00:38]} Bxd3 {[%clk 00:00:44]}
{[%emt 00:00:29]} 41. Rb6 {[%clk 00:27:22]} {[%emt 00:03:38]} Ra8 {[%clk
00:22:51]} {[%emt 00:08:24]} 42. b4 {[%clk 00:26:55]} {[%emt 00:00:58]} Ra1
{[%clk 00:21:02]} {[%emt 00:02:18]} 43. Rd6 {[%clk 00:22:48]} {[%emt 00:04:37]}
Bf5 {[%clk 00:16:29]} {[%emt 00:05:03]} 44. b5 {[%clk 00:21:27]} {[%emt
00:01:51]} Ra4 {[%clk 00:13:50]} {[%emt 00:03:09]} 45. b6 {[%clk 00:15:41]}
{[%emt 00:06:16]} Rxh4+ {[%clk 00:14:15]} {[%emt 00:00:05]} 46. Kg3 {[%clk
00:15:44]} {[%emt 00:00:26]} Rb4 {[%clk 00:13:56]} {[%emt 00:00:50]} 47. Rc6
{[%clk 00:14:16]} {[%emt 00:01:58]} h4+ {[%clk 00:11:12]} {[%emt 00:03:14]} 48.
Kh2 {[%clk 00:14:44]} {[%emt 00:00:01]} Be4 {[%clk 00:11:03]} {[%emt 00:00:40]}
49. Rd6 {[%clk 00:12:29]} {[%emt 00:02:46]} Bf8 {[%clk 00:04:47]} {[%emt
00:06:45]} 50. Rf6 {[%clk 00:05:56]} {[%emt 00:07:04]} Kg7 {[%clk 00:04:09]}
{[%emt 00:01:08]} 51. f3 {[%clk 00:04:58]} {[%emt 00:01:28]} Rb3 {[%clk
00:02:23]} {[%emt 00:02:17]} 52. fxe4 {[%clk 00:01:57]} {[%emt 00:03:31]} Rxe3
{[%clk 00:02:50]} {[%emt 00:00:03]} 53. Rc6 {[%clk 00:02:21]} {[%emt 00:00:06]}
Rxe4 {[%clk 00:02:18]} {[%emt 00:01:02]} 54. b7 {[%clk 00:02:30]} {[%emt
00:00:22]} Rb4 {[%clk 00:02:40]} {[%emt 00:00:07]} 55. Rc7+ {[%clk 00:02:56]}
{[%emt 00:00:04]} Kg6 {[%clk 00:02:18]} {[%emt 00:00:52]} 56. Rc8 {[%clk
00:03:17]} {[%emt 00:00:10]} Bd6 {[%clk 00:02:15]} {[%emt 00:00:32]} 57. Rc6
{[%clk 00:03:21]} {[%emt 00:00:26]} Rxb7 {[%clk 00:02:40]} {[%emt 00:00:06]} 58.
Rxd6+ {[%clk 00:03:46]} {[%emt 00:00:04]} Kxg5 {[%clk 00:03:07]} {[%emt
00:00:03]} 59. Rd8 {[%clk 00:03:44]} {[%emt 00:00:32]} Rb2+ {[%clk 00:03:33]}
{[%emt 00:00:05]} 60. Kh3 {[%clk 00:03:59]} {[%emt 00:00:14]} Rb3+ {[%clk
00:04:01]} {[%emt 00:00:02]} 61. Kg2 {[%clk 00:03:58]} {[%emt 00:00:31]} h3+
{[%clk 00:04:07]} {[%emt 00:00:24]} 62. Kf2 {[%clk 00:04:02]} {[%emt 00:00:26]}
Kf4 {[%clk 00:04:04]} {[%emt 00:00:32]} 63. Rf8+ {[%clk 00:04:18]} {[%emt
00:00:14]} Ke4 {[%clk 00:04:29]} {[%emt 00:00:06]} 64. Rh8 {[%clk 00:04:41]}
{[%emt 00:00:07]} Rf3+ {[%clk 00:04:27]} {[%emt 00:00:32]} 65. Ke2 {[%clk
00:04:52]} {[%emt 00:00:20]} Ra3 {[%clk 00:03:34]} {[%emt 00:01:23]} 66. Rh4+
{[%clk 00:04:54]} {[%emt 00:00:27]} Kf5 {[%clk 00:02:52]} {[%emt 00:01:11]} 67.
Rh8 {[%clk 00:04:49]} {[%emt 00:00:35]} Kf4 {[%clk 00:01:05]} {[%emt 00:02:18]}
68. Rf8+ {[%clk 00:03:57]} {[%emt 00:01:22]} Ke4 {[%emt 00:00:05]} 69. Kf2
{[%clk 00:03:34]} {[%emt 00:00:51]} h2 {[%clk 00:01:30]} {[%emt 00:00:32]} 70.
Rh8 {[%clk 00:03:49]} {[%emt 00:00:15]} Ra1 {[%emt 00:00:40]} 71. Rh4+ {[%clk
00:03:55]} Kd3 {[%clk 00:02:10]} {[%emt 00:00:05]} 72. Rh3+ {[%clk 00:04:09]}
{[%emt 00:00:16]} Kd4 {[%clk 00:02:37]} {[%emt 00:00:03]} 73. Rh4+ {[%clk
00:04:07]} {[%emt 00:00:32]} e4 {[%clk 00:03:02]} {[%emt 00:00:04]} 0-1

[Event "NJSK 2022 Jeugd A"]
[Site "Almelo, Netherlands"]
[Date "2022.05.03"]
[Round "3.3"]
[White "Maters, Arthur"]
[Black "Albers, Sasa"]
[Result "0-1"]
[TimeControl "90min/40moves + 30min + 30sec/move"]
[WhiteElo "2048"]
[BlackElo "2117"]

1. e4 {[%clk 01:30:59]} c6 {[%clk 01:30:55]} {[%emt 00:00:05]} 2. Nf3 {[%clk
01:31:24]} {[%emt 00:00:05]} d5 {[%clk 01:31:21]} {[%emt 00:00:04]} 3. Nc3
{[%clk 01:31:51]} {[%emt 00:00:03]} dxe4 {[%clk 01:31:47]} {[%emt 00:00:04]} 4.
Nxe4 {[%clk 01:32:13]} {[%emt 00:00:08]} Nf6 {[%clk 01:32:10]} {[%emt
00:00:07]} 5. Qe2 {[%clk 01:32:38]} {[%emt 00:00:06]} Nxe4 {[%clk 01:32:34]}
{[%emt 00:00:05]} 6. Qxe4 {[%clk 01:33:04]} {[%emt 00:00:04]} Nd7 {[%clk
01:32:50]} {[%emt 00:00:15]} 7. Bc4 {[%clk 01:33:28]} {[%emt 00:00:06]} Nf6
{[%clk 01:33:15]} {[%emt 00:00:04]} 8. Ne5 {[%clk 01:33:54]} {[%emt 00:00:05]}
e6 {[%clk 01:33:39]} {[%emt 00:00:05]} 9. Qe2 {[%clk 01:34:20]} {[%emt
00:00:05]} b5 {[%clk 01:34:02]} {[%emt 00:00:07]} 10. Bd3 {[%clk 01:34:45]}
{[%emt 00:00:05]} Qc7 {[%clk 01:34:26]} {[%emt 00:00:05]} 11. a4 {[%clk
01:35:12]} {[%emt 00:00:04]} Bd6 {[%clk 01:34:51]} {[%emt 00:00:05]} 12. Nxc6
{[%clk 01:35:36]} {[%emt 00:00:05]} b4 {[%clk 01:35:03]} {[%emt 00:00:18]} 13.
Nd4 {[%clk 01:36:02]} {[%emt 00:00:04]} a6 {[%clk 01:35:26]} {[%emt 00:00:08]}
14. Nf5 {[%clk 01:36:29]} {[%emt 00:00:03]} Bb7 {[%clk 01:35:52]} {[%emt
00:00:04]} 15. Nxd6+ {[%clk 01:36:54]} {[%emt 00:00:05]} Qxd6 {[%clk 01:36:16]}
{[%emt 00:00:04]} 16. O-O {[%clk 01:37:17]} {[%emt 00:00:08]} h5 {[%clk
01:36:36]} {[%emt 00:00:10]} 17. Qe3 {[%clk 01:37:44]} {[%emt 00:00:03]} b3
{[%clk 01:36:46]} {[%emt 00:00:20]} 18. c3 {[%clk 01:28:12]} {[%emt 00:10:02]}
O-O-O {[%clk 01:35:46]} {[%emt 00:01:30]} 19. Be2 {[%clk 01:25:20]} {[%emt
00:03:22]} Nd5 {[%clk 01:35:16]} {[%emt 00:01:00]} 20. Qg3 {[%clk 01:21:00]}
{[%emt 00:04:50]} Qd7 {[%clk 00:36:44]} {[%emt 00:59:03]} 21. Qh4 {[%clk
01:07:40]} {[%emt 00:13:49]} g5 {[%clk 00:33:36]} {[%emt 00:03:38]} 22. Qc4+
{[%clk 01:06:59]} {[%emt 00:01:11]} Kb8 {[%clk 00:33:45]} {[%emt 00:00:21]} 23.
Qxb3 {[%clk 01:06:02]} {[%emt 00:01:27]} Qc6 {[%clk 00:32:06]} {[%emt
00:02:09]} 24. Bf3 {[%clk 01:03:00]} {[%emt 00:03:32]} g4 {[%clk 00:32:11]}
{[%emt 00:00:25]} 25. Be4 {[%clk 01:02:55]} {[%emt 00:00:35]} f5 {[%clk
00:31:51]} {[%emt 00:00:50]} 26. Bxd5 {[%clk 01:03:18]} {[%emt 00:00:07]} Rxd5
{[%clk 00:32:01]} {[%emt 00:00:20]} 27. f3 {[%clk 00:56:29]} {[%emt 00:07:19]}
Rd3 {[%clk 00:24:00]} {[%emt 00:08:31]} 28. Qc2 {[%clk 00:50:38]} {[%emt
00:06:21]} Rhd8 {[%clk 00:23:45]} {[%emt 00:00:46]} 29. Rf2 {[%clk 00:50:51]}
{[%emt 00:00:17]} h4 {[%clk 00:14:55]} {[%emt 00:09:20]} 30. b4 {[%clk
00:49:11]} {[%emt 00:02:09]} g3 {[%clk 00:14:29]} {[%emt 00:00:55]} 31. Rf1
{[%clk 00:45:54]} {[%emt 00:03:47]} gxh2+ {[%clk 00:13:39]} {[%emt 00:01:20]}
32. Kxh2 {[%clk 00:44:36]} {[%emt 00:01:49]} h3 {[%clk 00:10:22]} {[%emt
00:03:47]} 33. g3 {[%clk 00:41:10]} {[%emt 00:03:55]} Rxf3 {[%clk 00:09:26]}
{[%emt 00:01:26]} 34. Qd1 {[%clk 00:41:33]} {[%emt 00:00:08]} Rdd3 {[%clk
00:09:13]} {[%emt 00:00:43]} 35. Rxf3 {[%clk 00:40:46]} {[%emt 00:01:17]} Rxf3
{[%clk 00:09:36]} {[%emt 00:00:07]} 36. Kxh3 {[%clk 00:40:47]} {[%emt
00:00:29]} Qe8 {[%clk 00:07:13]} {[%emt 00:02:53]} 37. Kg2 {[%clk 00:35:03]}
{[%emt 00:06:13]} Qh5 {[%clk 00:06:16]} {[%emt 00:01:27]} 0-1

[Event "NJSK 2022 Jeugd A"]
[Site "Almelo, Netherlands"]
[Date "2022.05.03"]
[Round "3.4"]
[White "Bakker, Tycho"]
[Black "Klaren, Duncan"]
[Result "0-1"]
[TimeControl "90min/40moves + 30min + 30sec/move"]
[WhiteElo "1857"]
[BlackElo "1916"]

1. Nf3 {[%clk 01:30:57]} {[%emt 00:00:03]} Nf6 {[%clk 01:30:47]} {[%emt
00:00:13]} 2. g3 {[%clk 01:31:24]} {[%emt 00:00:04]} b6 {[%clk 01:30:56]}
{[%emt 00:00:21]} 3. Bg2 {[%clk 01:31:18]} {[%emt 00:00:37]} Bb7 {[%clk
01:31:17]} {[%emt 00:00:08]} 4. d4 {[%clk 01:30:00]} {[%emt 00:01:48]} e6
{[%clk 01:31:37]} {[%emt 00:00:11]} 5. O-O {[%clk 01:30:20]} {[%emt 00:00:09]}
Be7 {[%clk 01:31:55]} {[%emt 00:00:12]} 6. c4 {[%emt 00:04:34]} O-O {[%clk
01:31:48]} {[%emt 00:00:19]} 7. Nc3 {[%clk 01:23:17]} {[%emt 00:03:44]} Ne4
{[%clk 01:31:43]} {[%emt 00:00:38]} 8. Re1 {[%clk 01:23:41]} {[%emt 00:00:06]}
Qc8 {[%clk 01:31:41]} {[%emt 00:00:32]} 9. Qc2 {[%clk 01:17:23]} {[%emt
00:06:48]} Nxc3 {[%clk 01:29:43]} {[%emt 00:02:28]} 10. Qxc3 {[%clk 01:16:15]}
{[%emt 00:01:38]} d6 {[%clk 01:28:53]} {[%emt 00:01:20]} 11. e4 {[%clk
01:16:02]} {[%emt 00:00:43]} Nd7 {[%clk 01:26:50]} {[%emt 00:02:33]} 12. Rb1
{[%clk 01:10:56]} {[%emt 00:05:36]} a5 {[%clk 01:23:30]} {[%emt 00:03:50]} 13.
b3 {[%clk 01:10:55]} {[%emt 00:00:31]} d5 {[%clk 01:16:20]} {[%emt 00:07:40]}
14. Nd2 {[%clk 01:10:02]} {[%emt 00:01:23]} dxe4 {[%clk 01:16:15]} {[%emt
00:00:35]} 15. Bxe4 {[%clk 01:09:52]} {[%emt 00:00:40]} Bxe4 {[%clk 01:15:00]}
{[%emt 00:01:46]} 16. Rxe4 {[%clk 01:10:00]} {[%emt 00:00:21]} Nf6 {[%clk
01:11:54]} {[%emt 00:03:36]} 17. Re2 {[%clk 01:10:15]} {[%emt 00:00:15]} Rd8
{[%clk 01:06:51]} {[%emt 00:05:32]} 18. Bb2 {[%clk 01:10:19]} {[%emt 00:00:27]}
Qb7 {[%clk 00:55:59]} {[%emt 00:11:22]} 19. Qc2 {[%clk 01:05:41]} {[%emt
00:05:07]} Rd7 {[%clk 00:49:45]} {[%emt 00:06:45]} 20. Ne4 {[%clk 00:59:45]}
{[%emt 00:06:26]} Nxe4 {[%clk 00:44:57]} {[%emt 00:05:18]} 21. Rxe4 {[%clk
00:59:40]} {[%emt 00:00:35]} Bf6 {[%clk 00:44:47]} {[%emt 00:00:40]} 22. Rbe1
{[%clk 00:59:46]} {[%emt 00:00:24]} Rdd8 {[%clk 00:31:55]} {[%emt 00:13:23]} 23.
a3 {[%clk 00:44:16]} {[%emt 00:16:00]} c6 {[%clk 00:29:10]} {[%emt 00:03:14]}
24. h4 {[%clk 00:38:42]} {[%emt 00:06:03]} Qd7 {[%clk 00:22:28]} {[%emt
00:07:12]} 25. Rd1 {[%clk 00:34:14]} {[%emt 00:04:58]} b5 {[%clk 00:18:33]}
{[%emt 00:04:26]} 26. Re3 {[%clk 00:32:55]} {[%emt 00:01:49]} a4 {[%clk
00:16:45]} {[%emt 00:02:17]} 27. b4 {[%clk 00:28:36]} {[%emt 00:04:50]} Rab8
{[%clk 00:15:40]} {[%emt 00:01:35]} 28. Red3 {[%clk 00:26:04]} {[%emt
00:03:02]} Rbc8 {[%clk 00:12:53]} {[%emt 00:03:17]} 29. R3d2 {[%clk 00:23:52]}
{[%emt 00:02:39]} Qe7 {[%clk 00:11:44]} {[%emt 00:01:42]} 30. Qe4 {[%clk
00:15:24]} {[%emt 00:08:57]} bxc4 {[%clk 00:08:13]} {[%emt 00:04:02]} 31. Rc2
{[%clk 00:15:17]} {[%emt 00:00:36]} Qb7 {[%clk 00:06:06]} {[%emt 00:02:38]} 32.
Rxc4 {[%clk 00:15:25]} {[%emt 00:00:23]} Qb5 {[%clk 00:06:31]} {[%emt
00:00:04]} 33. Rc5 {[%clk 00:14:21]} {[%emt 00:01:34]} Qa6 {[%clk 00:06:09]}
{[%emt 00:00:51]} 34. Rdc1 {[%clk 00:13:59]} {[%emt 00:00:53]} Rd5 {[%clk
00:05:00]} {[%emt 00:01:38]} 35. Qc2 {[%clk 00:11:20]} {[%emt 00:03:09]} Rcd8
{[%clk 00:02:55]} {[%emt 00:02:37]} 36. Rxc6 {[%clk 00:11:23]} {[%emt
00:00:26]} Qb5 {[%clk 00:03:12]} {[%emt 00:00:13]} 37. Rc5 {[%clk 00:10:38]}
{[%emt 00:01:15]} Qd7 {[%clk 00:03:13]} {[%emt 00:00:29]} 38. Rc7 {[%clk
00:07:42]} {[%emt 00:03:26]} Qb5 {[%clk 00:02:48]} {[%emt 00:00:55]} 39. Qc4
{[%clk 00:08:09]} {[%emt 00:00:03]} Qb6 {[%clk 00:02:44]} {[%emt 00:00:32]} 40.
Rc6 {[%clk 00:06:13]} {[%emt 00:02:27]} Qa7 {[%clk 00:01:43]} {[%emt 00:01:30]}
41. Qa6 {[%clk 00:03:10]} {[%emt 00:03:35]} Bxd4 {[%clk 00:29:09]} {[%emt
00:03:04]} 42. Bxd4 {[%clk 00:32:52]} {[%emt 00:00:48]} Qxd4 {[%clk 00:26:23]}
{[%emt 00:03:15]} 43. Qxa4 {[%clk 00:31:07]} {[%emt 00:02:13]} g5 {[%clk
00:25:19]} {[%emt 00:01:36]} 44. R6c4 {[%clk 00:28:39]} {[%emt 00:02:59]} Qd3
{[%clk 00:24:18]} {[%emt 00:01:31]} 45. R4c3 {[%clk 00:25:36]} {[%emt
00:03:33]} Qe2 {[%clk 00:22:49]} {[%emt 00:01:59]} 46. hxg5 {[%clk 00:22:10]}
{[%emt 00:03:55]} Kg7 {[%clk 00:11:40]} {[%emt 00:11:39]} 47. Re3 {[%clk
00:10:36]} {[%emt 00:12:04]} Rd1+ {[%clk 00:10:52]} {[%emt 00:01:19]} 48. Rxd1
{[%clk 00:11:01]} {[%emt 00:00:05]} Rxd1+ {[%clk 00:11:17]} {[%emt 00:00:04]}
49. Kg2 {[%clk 00:10:56]} {[%emt 00:00:36]} Qf1+ {[%clk 00:07:33]} {[%emt
00:04:13]} 50. Kf3 {[%clk 00:11:21]} {[%emt 00:00:06]} Qh1+ {[%clk 00:07:58]}
{[%emt 00:00:05]} 51. Ke2 {[%clk 00:11:02]} {[%emt 00:00:48]} Qf1+ {[%clk
00:06:43]} {[%emt 00:01:45]} 52. Kf3 {[%clk 00:11:26]} {[%emt 00:00:14]} Rd2
{[%clk 00:06:41]} {[%emt 00:00:25]} 53. Qa5 {[%clk 00:11:41]} {[%emt 00:00:15]}
Rxf2+ {[%clk 00:05:58]} {[%emt 00:01:13]} 54. Kg4 {[%clk 00:10:30]} {[%emt
00:01:40]} Qd1+ {[%clk 00:06:15]} {[%emt 00:00:13]} 55. Kh3 {[%clk 00:10:36]}
{[%emt 00:00:25]} Qh5# {[%clk 00:06:39]} {[%emt 00:00:08]} 0-1

[Event "NJSK 2022 Jeugd A"]
[Site "Almelo, Netherlands"]
[Date "2022.05.03"]
[Round "3.5"]
[White "Van Dam, Thijs"]
[Black "Verheul, Job"]
[Result "0-1"]
[TimeControl "90min/40moves + 30min + 30sec/move"]
[WhiteElo "1903"]
[BlackElo "1707"]

1. e4 {[%clk 01:30:53]} {[%emt 00:00:06]} c6 {[%clk 01:30:31]} {[%emt
00:00:30]} 2. Nc3 {[%clk 01:30:58]} {[%emt 00:00:25]} d5 {[%clk 01:30:50]}
{[%emt 00:00:11]} 3. Qe2 {[%clk 01:31:19]} {[%emt 00:00:08]} dxe4 {[%clk
01:23:48]} {[%emt 00:07:33]} 4. Nxe4 {[%clk 01:31:34]} {[%emt 00:00:14]} e6
{[%clk 01:24:10]} {[%emt 00:00:08]} 5. Nf3 {[%clk 01:30:27]} {[%emt 00:01:36]}
Nd7 {[%clk 01:22:22]} {[%emt 00:02:19]} 6. d3 {[%clk 01:26:46]} {[%emt
00:04:11]} Ngf6 {[%clk 01:20:12]} {[%emt 00:02:40]} 7. Bd2 {[%clk 01:26:40]}
{[%emt 00:00:37]} Be7 {[%clk 01:20:16]} {[%emt 00:00:25]} 8. O-O-O {[%clk
01:26:14]} {[%emt 00:00:56]} O-O {[%clk 01:05:10]} {[%emt 00:15:37]} 9. Rg1
{[%clk 01:17:55]} {[%emt 00:08:49]} b5 {[%clk 01:03:41]} {[%emt 00:01:59]} 10.
g4 {[%clk 01:17:21]} {[%emt 00:01:03]} Qc7 {[%clk 00:55:19]} {[%emt 00:08:52]}
11. Nd4 {[%clk 01:04:34]} {[%emt 00:13:17]} Bb7 {[%clk 00:48:54]} {[%emt
00:06:55]} 12. h4 {[%clk 00:56:41]} {[%emt 00:08:23]} a6 {[%clk 00:38:00]}
{[%emt 00:11:25]} 13. g5 {[%clk 00:51:13]} {[%emt 00:05:58]} Nxe4 {[%clk
00:34:59]} {[%emt 00:03:31]} 14. dxe4 {[%clk 00:50:55]} {[%emt 00:00:48]} c5
{[%clk 00:34:32]} {[%emt 00:00:57]} 15. Nf3 {[%clk 00:49:32]} {[%emt 00:01:53]}
c4 {[%clk 00:28:59]} {[%emt 00:06:03]} 16. h5 {[%clk 00:47:47]} {[%emt
00:02:15]} Nc5 {[%clk 00:25:18]} {[%emt 00:04:10]} 17. e5 {[%clk 00:37:12]}
{[%emt 00:11:05]} Nd3+ {[%clk 00:23:43]} {[%emt 00:02:06]} 18. Kb1 {[%clk
00:37:15]} {[%emt 00:00:27]} Nxb2 {[%clk 00:22:08]} {[%emt 00:02:05]} 19. Kxb2
{[%clk 00:27:56]} {[%emt 00:09:48]} c3+ {[%clk 00:22:32]} {[%emt 00:00:07]} 20.
Kb1 {[%clk 00:27:53]} {[%emt 00:00:33]} cxd2 {[%clk 00:20:35]} {[%emt
00:02:27]} 21. Nxd2 {[%clk 00:26:57]} {[%emt 00:01:25]} Rac8 {[%clk 00:17:09]}
{[%emt 00:03:56]} 22. Nb3 {[%clk 00:24:32]} {[%emt 00:02:56]} a5 {[%clk
00:09:56]} {[%emt 00:07:43]} 23. Nd4 {[%clk 00:21:21]} {[%emt 00:03:40]} Bd5
{[%clk 00:09:22]} {[%emt 00:01:04]} 24. g6 {[%clk 00:19:50]} {[%emt 00:02:00]}
fxg6 {[%clk 00:09:22]} {[%emt 00:00:31]} 25. hxg6 {[%clk 00:19:46]} {[%emt
00:00:34]} h6 {[%clk 00:09:20]} {[%emt 00:00:32]} 26. Bh3 {[%clk 00:19:21]}
{[%emt 00:00:55]} Ba3 {[%clk 00:05:56]} {[%emt 00:03:54]} 27. Rg3 {[%clk
00:19:03]} {[%emt 00:00:49]} Qe7 {[%clk 00:05:30]} {[%emt 00:00:55]} 28. Ka1
{[%clk 00:06:36]} {[%emt 00:12:57]} Qb4 {[%clk 00:04:12]} {[%emt 00:01:48]} 29.
Nb3 {[%clk 00:03:39]} {[%emt 00:03:27]} Rc3 {[%clk 00:03:35]} {[%emt 00:01:07]}
30. Rg4 {[%clk 00:02:48]} {[%emt 00:01:21]} Bc4 {[%clk 00:03:01]} {[%emt
00:01:04]} 31. Rxc4 {[%clk 00:01:02]} {[%emt 00:02:15]} bxc4 {[%clk 00:03:21]}
{[%emt 00:00:12]} 32. Bxe6+ {[%clk 00:00:57]} {[%emt 00:00:34]} Kh8 {[%clk
00:03:50]} 33. Rd4 {[%clk 00:00:34]} {[%emt 00:00:54]} Rxb3 {[%clk 00:03:30]}
{[%emt 00:00:49]} 34. cxb3 {[%clk 00:00:33]} {[%emt 00:00:31]} Qc3+ {[%clk
00:03:53]} {[%emt 00:00:07]} 35. Kb1 {[%clk 00:00:57]} {[%emt 00:00:06]} Qc1#
{[%clk 00:03:41]} {[%emt 00:00:06]} 0-1